[Event "Czech Championship U20 Open 2023"]
[Site "Jaromerice nad Rokytnou"]
[Date "2023.03.14"]
[Round "6.2"]
[White "Smolik, Jachym"]
[Black "Mica, Marek"]
[Result "1-0"]
[ECO "B53"]
[WhiteElo "2297"]
[BlackElo "2248"]
[Annotator "TA"]
[PlyCount "151"]
[EventDate "2023.03.10"]
[EventType "tourn"]
[EventCountry "CZE"]
[SourceTitle "playchess.com"]
[Source "ChessBase"]
[SourceQuality "1"]
[TimeControl "40/5400+30:1800+30"]

{[%evp 9,151,2,16,8,10,16,10,0,0,0,8,0,8,0,8,0,54,52,82,45,56,0,25,0,0,0,0,0,0,0,22,8,25,0,0,0,35,0,0,-11,-40,-23,-30,-24,-30,-30,-19,-117,0,0,0,0,0,0,0,0,73,0,78,80,80,58,74,53,71,58,150,112,212,207,213,208,198,181,225,200,222,202,217,181,223,218,212,211,343,163,320,309,404,403,1129,1043,1136,884,1136,1129,1121,0,1107,984,1107,1106,1106,1102,966,919,834,615,568,538,471,407,397,392,376,362,367,357,367,367,360,354,460,345,12836,11134,12845,12846,12846,12847,12849,12849,12850,12849,12850,27999,27999,27999,27999,27999,27999,27999,27999,27999]} 1. e4 {[%emt 0:00:02]} c5 {[%emt 0:00:37]} 2. Nf3 {[%emt 0:00:05]} d6 {[%emt 0:00:04]} 3. d4 {[%emt 0:00:03]} cxd4 {[%emt 0:00:07]} 4. Qxd4 {[%emt 0:00:04]} Nc6 {[%emt 0:00:42]} 5. Qe3 {[%emt 0:00:05]} g6 {[%emt 0:02:10]} 6. Be2 {[%emt 0:00:05] B53: Sicilian: 2...d6: Lines with Qxd4.} Bg7 {[%emt 0:01:23]} 7. O-O {[%emt 0:00:22]} Nf6 {[%emt 0:00:41]} 8. h3 {[%emt 0:00:05] The position is equal.} O-O {[%emt 0:00:39]} 9. Rd1 {[%emt 0:00:07]} Nd7 {[%emt 0:07:11]} 10. Nc3 {[%emt 0:01:51]} b6 {[%emt 0:05:01]} 11. Rb1 {[%emt 0:03:56]} Bb7 {[%emt 0:05:52]} 12. Nd5 {[%emt 0:02:01] [#]} Nc5 $146 {[%emt 0:06:57]} (12... Nce5 $11) ({Predecessor:} 12... a6 13. c4 Re8 14. b3 e6 15. Nc3 Qb8 16. Ba3 Bf8 17. Qd2 Nc5 18. Bf1 Rd8 {½-½ Harikrishna,P (2732)-Grischuk,A (2777) Airthings Masters Prelim rapid 2020 (6)}) 13. b4 $14 {[%emt 0:09:09]} Nd7 {[%emt 0:08:25]} 14. c4 {[%emt 0:01:33] White is much more active. The black rooks are badly placed.} Rc8 {[%emt 0:01:27]} 15. a4 {[%emt 0:19:28]} a5 {[%emt 0:14:06]} 16. b5 {[%emt 0:08:53]} Nce5 {[%emt 0:00:28]} 17. Nxe5 {[%emt 0:00:08]} Bxe5 {[%emt 0:00:23]} 18. f4 {[%emt 0:02:46]} Bg7 {[%emt 0:00:50]} 19. Ba3 {[%emt 0:09:21][%cal Oe4e5]} Nc5 {[%emt 0:04:52]} 20. e5 $1 {[%emt 0:02:18] And now exd6 would win.} Bxd5 $1 {[%emt 0:05:12]} 21. Rxd5 {[%emt 0:00:55]} Nxa4 {[%emt 0:08:51]} 22. Rbd1 {[%emt 0:12:28]} (22. exd6 exd6 23. Rxd6 Qh4 $15) 22... Re8 {[%emt 0:01:35] Black is weak on the light squares} 23. Qf3 {[%emt 0:05:26]} Qd7 {[%emt 0:05:16]} 24. Qb3 {[%emt 0:03:01]} Nc5 {[%emt 0:00:33]} 25. Bxc5 {[%emt 0:00:01]} Rxc5 {[%emt 0:01:20]} 26. Rxc5 {[%emt 0:00:02]} (26. exd6 $2 Rxd5 27. Rxd5 exd6 $19) 26... bxc5 {[%emt 0:00:17]} 27. Bf3 {[%emt 0:02:09] aiming for Bc6.} Rb8 {[%emt 0:01:00]} 28. Qa3 {[%emt 0:07:44]} (28. Qc2 $11 {remains equal.}) 28... Qc7 {[%emt 0:01:09]} (28... Qf5 $17 29. exd6 exd6) 29. exd6 $11 {[%emt 0:00:38]} exd6 {[%emt 0:00:07]} 30. Bd5 {[%emt 0:02:15]} Bd4+ {[%emt 0:01:35]} 31. Kh2 {[%emt 0:01:49]} Qd8 {[%emt 0:02:19]} 32. Re1 {[%emt 0:01:00]} Kf8 {[%emt 0:04:08]} (32... h5 $1 $11) 33. Re2 {[%emt 0:03:47]} ({Better is} 33. g3 $16) 33... Qf6 {[%emt 0:01:32]} (33... h5 $1 $11) 34. Qxa5 $16 {[%emt 0:00:52]} Qxf4+ {[%emt 0:01:39]} 35. g3 {[%emt 0:00:01][%cal Bg2g3,Bg3g4][%mdl 32]} Qf1 {[%emt 0:01:19][%csl Gd4][%cal Rf1g1]} 36. Qe1 {[%emt 0:00:10]} Qxe1 {[%emt 0:02:40]} 37. Rxe1 $14 {[%emt 0:00:28][%mdl 4096] Endgame KRB-KRB} Bc3 {[%emt 0:04:42] White now steadily converts the win.} ({Black should try} 37... Re8 $1 $14 38. Rxe8+ Kxe8) 38. Re3 $1 $16 {[%emt 0:01:08]} Ba5 {[%emt 0:01:11]} (38... Be5 $16) 39. Rf3 $18 {[%emt 0:01:09]} f5 {[%emt 0:00:05]} 40. g4 {[%emt 0:00:10]} Kg7 {[%emt 0:00:49]} 41. gxf5 {[%emt 0:31:10]} Rf8 {[%emt 0:30:05]} 42. Ra3 {[%emt 0:00:32]} Bb6 {[%emt 0:00:05]} 43. fxg6 {[%emt 0:00:28]} Kxg6 {[%emt 0:01:02]} 44. Re3 {[%emt 0:00:00]} Kg5 {[%emt 0:00:00] [#]} 45. Kg3 $1 {[%emt 0:00:00]} Bd8 {[%emt 0:00:00]} 46. Re6 {[%emt 0:00:00]} h5 {[%emt 0:00:00]} (46... Bb6 {keeps fighting.} 47. Re7 (47. Rxd6 $2 Bc7 $19) (47. h4+ Kf5 $18) 47... h6 48. h4+ Kf5) 47. Kg2 {[%emt 0:00:00]} (47. Rxd6 $2 Bc7 48. h4+ Kf5 $19) (47. h4+ $142 Kf5 48. Rh6 (48. Rxd6 $2 Bc7 $19)) 47... Bf6 $2 {[%emt 0:00:00] [#]} (47... Bc7 {was called for.} 48. Re7 Ba5) 48. b6 $1 {[%emt 0:00:00]} (48. Rxd6 Bd4 $16) 48... Bd4 {[%emt 0:00:00]} 49. Re2 {[%emt 0:00:00] Prevents Rf2+} (49. Rxd6 Rf2+ 50. Kh1 Rf1+ 51. Kh2 (51. Kg2 Rf2+ 52. Kh1 Rf1+ 53. Kh2 Rf2+ 54. Kh1 $11) 51... Rf2+ 52. Kh1 Rf1+ 53. Kh2 (53. Kg2 Rf2+ 54. Kh1 $11) 53... Rf2+ 54. Kh1 $11) 49... Bc3 {[%emt 0:00:00]} (49... Bf6 $142 50. b7 Rb8) 50. Ra2 {[%emt 0:00:00]} Kh4 {[%emt 0:00:00]} 51. b7 {[%emt 0:00:00] Threatening mate with Ra8.} Bd4 {[%emt 0:00:00]} 52. Re2 {[%emt 0:00:00]} Kg5 {[%emt 0:00:00]} 53. Ra2 {[%emt 0:00:00]} Kh4 $1 {[%emt 0:00:00]} 54. Rd2 {[%emt 0:00:00]} Kg5 {[%emt 0:00:00]} 55. Re2 {[%emt 0:00:00]} Kh4 {[%emt 0:00:00]} 56. Re4+ {[%emt 0:00:00]} Kg5 {[%emt 0:00:00]} 57. h4+ {[%emt 0:00:00]} Kf5 {[%emt 0:00:00]} 58. Re7 {[%emt 0:00:00] White wants to mate with Rf7+.} Kg4 {[%emt 0:00:00]} 59. Rf7 {[%emt 0:00:00] Inhibits Rf2+.} Re8 {[%emt 0:00:00]} 60. Be6+ {[%emt 0:00:00][%mdl 64] Deflection, Promotion} Kxh4 {[%emt 0:00:00]} 61. Bc8 {[%emt 0:00:00]} Re2+ {[%emt 0:00:00]} 62. Kf3 {[%emt 0:00:20]} Rb2 {[%emt 0:00:00]} 63. Ke4 {[%emt 0:02:25]} Kg3 {[%emt 0:00:00]} 64. Rf3+ {[%emt 0:00:36]} Kg2 {[%emt 0:00:00]} 65. Ra3 {[%emt 0:01:05]} Bf2 {[%emt 0:00:00]} 66. Kd5 {[%emt 0:00:31] Threatens to win with Ra8.} h4 $2 {[%emt 0:00:00]} (66... Bg3 67. Ra2 {[%mdl 64] Promotion} Rxa2) 67. Ra8 {[%emt 0:01:05]} h3 {[%emt 0:00:00] [#]} 68. Bxh3+ $1 {[%emt 0:00:22][%mdl 576] Promotion} Kxh3 {[%emt 0:00:00]} (68... Kh2 69. Bc8) 69. b8=Q {[%emt 0:00:03]} ({Worse is} 69. b8=B Rd2+ 70. Ke6 Re2+ 71. Kd5 Bg3 $11) 69... Rxb8 {[%emt 0:00:00]} 70. Rxb8 {[%emt 0:00:03] KR-KB} Kg4 {[%emt 0:00:00]} 71. Rf8 {[%emt 0:00:15]} ({Stronger than} 71. Kxd6 Bg3+ 72. Kxc5 Bxb8 $11) 71... Bd4 {[%emt 0:00:00]} 72. Kxd6 {[%emt 0:00:04]} Kg5 {[%emt 0:00:00] White mates.} 73. Rc8 {[%emt 0:00:43]} Kf6 {[%emt 0:00:00]} 74. Rxc5 {[%emt 0:00:08]} Kf7 {[%emt 0:00:00]} 75. Rd5 {[%emt 0:00:15]} Bg1 {[%emt 0:00:00]} 76. Kd7 {[%emt 0:00:02] Weighted Error Value: White=0.32/Black=0.26 (precise)} 1-0

[Event "Czech Championship U20 Open 2023"]
[Site "Jaromerice nad Rokytnou"]
[Date "2023.03.14"]
[Round "6.3"]
[White "Svanda, Ondrej"]
[Black "Frank, Adam"]
[Result "1-0"]
[ECO "B22"]
[WhiteElo "2366"]
[BlackElo "2391"]
[Annotator "TA"]
[PlyCount "47"]
[EventDate "2023.03.10"]
[EventType "tourn"]
[EventCountry "CZE"]
[SourceTitle "playchess.com"]
[Source "ChessBase"]
[SourceQuality "1"]
[TimeControl "40/5400+30:1800+30"]

{[%evp 9,46,0,0,4,1,6,17,17,37,47,38,56,95,86,86,84,20,-16,-21,-9,9,-45,283,297,632,595,658,656,639,612,666,664,29996,29997,29997,29998,29998,29999,29999]} 1. e4 {[%emt 0:00:04][%cal Be2e4,Be4e5][%mdl 32]} c5 {[%emt 0:00:21]} 2. c3 {[%emt 0:00:02]} Nf6 {[%emt 0:00:05][%cal Bg8f6,Bf6d5,Bd5b6][%mdl 32]} 3. e5 {[%emt 0:00:04]} Nd5 {[%emt 0:00:03]} 4. Nf3 {[%emt 0:00:07]} d6 {[%emt 0:00:08]} 5. Bb5+ {[%emt 0:00:07]} Bd7 {[%emt 0:01:44]} 6. Bc4 {[%emt 0:00:01] B22: Sicilian: 2 c3.} e6 {[%emt 0:17:54]} 7. d4 {[%emt 0:00:01][%cal Bd2d4,Bd4d5][%mdl 32]} Nb6 {[%emt 0:02:13]} 8. Bb3 {[%emt 0:01:23] [#] The position is equal.} Bb5 $146 {[%emt 0:03:57]} ({Predecessor:} 8... cxd4 9. exd6 Bc6 10. Nxd4 Qxd6 11. Nxc6 Qxd1+ 12. Kxd1 Nxc6 13. Ke2 O-O-O 14. a4 a6 {1-0 Leniart,A (2491)-Jeet,J (2218) Roquetas de Mar op 34th 2023 (2)}) 9. a4 {[%emt 0:10:26][%cal Ba2a4,Ba4a5][%mdl 32]} Ba6 {[%emt 0:00:04]} 10. a5 {[%emt 0:09:15]} N6d7 {[%emt 0:02:20] [#]} 11. d5 {[%emt 0:08:04] White is more active.} Nxe5 {[%emt 0:00:06] ...Nd3+ would be deadly.} 12. Nxe5 {[%emt 0:02:36]} ({Weaker is} 12. dxe6 Nd3+ 13. Kd2 Nxf2 14. exf7+ Kd7 $17) 12... dxe5 {[%emt 0:00:04]} 13. Qf3 {[%emt 0:30:59]} (13. Ba4+ {is more complex.} Ke7 14. Qh5 f6 15. Be3) 13... exd5 {[%emt 0:10:18]} 14. Bxd5 $40 {[%emt 0:00:03][%csl Gd5][%cal Rf3f7][%mdl 128] White mounts an attack.} Qc7 {[%emt 0:00:38]} 15. Nd2 {[%emt 0:01:55]} (15. Be3 $11) 15... Bd6 $2 {[%emt 0:11:27][%mdl 8192] Black cannot hold the game after this.} (15... Nc6 $15 {stays ahead.}) 16. Ne4 $18 {[%emt 0:00:02] Threatens to win with Nxd6+.} O-O $2 {[%emt 0:00:07] [#]} (16... Rf8 17. Bg5 (17. Bxb7 Bxb7 18. Nxd6+ {[%mdl 64] Discovered Attack} Qxd6 $16) 17... f6) 17. Nf6+ $1 {[%emt 0:05:06][%mdl 576] Deflection} Kh8 {[%emt 0:03:01] [#]} 18. Qf5 {[%emt 0:00:03][%csl Gf6][%cal Rf5h7] Against Nd7} Bd3 {[%emt 0:00:29]} 19. Qxd3 {[%emt 0:00:02][%csl Gf6][%cal Rd3h7]} gxf6 {[%emt 0:00:06]} 20. Qf5 {[%emt 0:00:02] Be4 would kill now.} Re8 {[%emt 0:07:16] Black is weak on the light squares} 21. Be4 {[%emt 0:00:29][%csl Ge4][%cal Rf5h7] White mates.} Kg7 {[%emt 0:00:04] [#]} 22. Bh6+ $1 {[%emt 0:00:06][%mdl 576] Decoy} Kxh6 {[%emt 0:00:03]} 23. Qxf6+ {[%emt 0:00:02]} Kh5 {[%emt 0:00:05]} 24. Bf3# {Beautiful play by Svanda!   Weighted Error Value: White=0.06 (flawless) /Black=0.65} 1-0

[Event "Czech Championship U20 Open 2023"]
[Site "Jaromerice nad Rokytnou"]
[Date "2023.03.14"]
[Round "6.4"]
[White "Jares, Michal"]
[Black "Kubiczek, Michal"]
[Result "1-0"]
[ECO "A05"]
[WhiteElo "2177"]
[BlackElo "2087"]
[Annotator "TA"]
[PlyCount "99"]
[EventDate "2023.03.10"]
[EventType "tourn"]
[EventCountry "CZE"]
[SourceTitle "playchess.com"]
[Source "ChessBase"]
[SourceQuality "1"]
[TimeControl "40/5400+30:1800+30"]

{[%evp 15,99,35,37,33,41,19,29,20,35,17,27,55,56,16,18,25,19,21,27,20,17,20,21,21,22,34,24,28,18,17,32,26,36,0,8,0,0,0,12,12,44,12,12,0,8,8,8,8,36,36,36,36,36,37,200,167,606,606,602,601,594,595,595,593,587,555,477,334,587,587,579,524,579,561,523,504,583,582,560,546,520,516,1528,1564,1532,1886]} 1. Nf3 {[%emt 0:00:04]} Nf6 {[%emt 0:00:17]} 2. g3 {[%emt 0:00:02]} d5 {[%emt 0:00:12]} 3. Bg2 {[%emt 0:00:08]} c5 {[%emt 0:00:05]} 4. O-O {[%emt 0:00:13]} Nc6 {[%emt 0:00:11]} 5. d4 {[%emt 0:00:15]} cxd4 {[%emt 0:00:04]} 6. Nxd4 {[%emt 0:00:03]} e5 {[%emt 0:00:08]} 7. Nxc6 {[%emt 0:00:12]} bxc6 {[%emt 0:00:02]} 8. c4 {[%emt 0:00:16]} Be6 {[%emt 0:00:06]} (8... dxc4 9. Bxc6+ Bd7 10. Bxa8 Qxa8 11. Nc3 $16) 9. Qa4 {[%emt 0:07:21] [#] Strongly threatening cxd5. D02: 1 d4 d5 2 Nf3 sidelines, including 2...Nf6 3 g3 and 2...Nf6 3 Bf4.} Qd7 {[%emt 0:00:12]} (9... dxc4 $2 10. Qxc6+ (10. Bxc6+ Bd7 $18) 10... Bd7 11. Qxa8 $18) 10. Nc3 {[%emt 0:01:43]} Rc8 {[%emt 0:00:05]} 11. cxd5 {[%emt 0:03:06] White has an edge.} cxd5 {[%emt 0:00:06]} 12. Qxd7+ {[%emt 0:00:51]} Kxd7 {[%emt 0:00:01]} 13. Rd1 {[%emt 0:01:40]} Bc5 {[%emt 0:00:04]} 14. Nxd5 {[%emt 0:23:13]} Nxd5 {[%emt 0:00:08]} 15. Bxd5 {[%emt 0:00:05]} Bxd5 {[%emt 0:00:05][%mdl 64] [#] Remove Defender} 16. Rxd5+ {[%emt 0:00:22]} Ke6 {[%emt 0:00:02]} 17. Rd2 {[%emt 0:07:20]} Rhd8 {[%emt 0:01:04]} 18. Kf1 {[%emt 0:03:11]} Bb6 {[%emt 0:02:03][%cal Oc8c1]} 19. Rxd8 {[%emt 0:02:18]} Rxd8 {[%emt 0:00:08]} 20. Be3 {[%emt 0:01:05]} Bxe3 {[%emt 0:00:20]} 21. fxe3 $14 {[%emt 0:00:01][%mdl 4096] Endgame KR-KR} Rd2 {[%emt 0:00:44]} 22. Rb1 {[%emt 0:00:23]} Kf5 {[%emt 0:01:37] [#]} 23. a4 $146 {[%emt 0:11:05]} ({Predecessor:} 23. Ke1 Rc2 24. Kd1 Rc6 25. Rc1 Rb6 26. b3 Ke4 27. Rc3 Rh6 28. Kd2 Rxh2 29. Rc7 {½-½ Matlakov,M (2701)-Akobian,V (2633) Gibraltar Masters 15th 2017 (6)}) 23... g5 {[%emt 0:11:52]} 24. Rc1 {[%emt 0:02:11]} a5 {[%emt 0:07:45]} 25. Rc7 {[%emt 0:06:49]} Ke4 {[%emt 0:23:27]} 26. Kf2 {[%emt 0:01:37]} f5 {[%emt 0:03:23]} 27. Rb7 {[%emt 0:04:47]} Rc2 {[%emt 0:04:37]} 28. Rb5 {[%emt 0:03:23]} (28. b4 $5 {[%cal Rb4a5]}) 28... h5 {[%emt 0:03:35]} 29. h3 {[%emt 0:04:11]} f4 {[%emt 0:11:56]} 30. exf4 {[%emt 0:02:28]} (30. Rxa5 $2 {too greedy.} fxe3+ 31. Kf1 Rc1+ 32. Kg2 Re1 $19) 30... gxf4 {[%emt 0:00:23]} 31. gxf4 {[%emt 0:00:21]} (31. Rxa5 f3 32. Kf1 Rxe2 $19) 31... exf4 {[%emt 0:03:43]} 32. Ke1 {[%emt 0:10:09]} h4 {[%emt 0:15:17]} 33. Kd1 {[%emt 0:01:16]} Rc4 {[%emt 0:00:31]} 34. Rxa5 {[%emt 0:01:32] Threatens to win with Kd2.} Ke3 {[%emt 0:02:49] Black cannot hold the game after this.} (34... Rb4 $1 $14) 35. b3 $18 {[%emt 0:01:18]} Rd4+ {[%emt 0:01:08]} (35... Rc3) 36. Ke1 {[%emt 0:00:30] White wants to mate with Re5+.} Rd8 {[%emt 0:08:17]} 37. Rc5 {[%emt 0:00:43]} Rg8 {[%emt 0:01:21][%cal Rg8g1]} 38. Rc3+ {[%emt 0:00:02]} Ke4 {[%emt 0:00:47]} 39. Rd3 {[%emt 0:01:26]} Rg1+ {[%emt 0:00:52]} 40. Kd2 {[%emt 0:00:57]} Ra1 {[%emt 0:00:31]} 41. Rc3 {[%emt 0:05:42]} Ra2+ $2 {[%emt 0:02:11]} (41... Kd5 {was called for.} 42. Rf3 Ke4) 42. Ke1 {[%emt 0:00:56] White is clearly winning.} Kd4 {[%emt 0:02:21]} 43. Rd3+ {[%emt 0:00:35]} Ke4 {[%emt 0:01:09]} 44. Kf2 {[%emt 0:00:28]} Ra1 {[%emt 0:00:42]} 45. Rc3 {[%emt 0:02:45]} Ra3 {[%emt 0:04:37]} 46. Rc4+ {[%emt 0:00:31]} Ke5 {[%emt 0:01:59]} 47. Rb4 {[%emt 0:00:02]} Ra1 {[%emt 0:00:09]} 48. Rb5+ {[%emt 0:01:22]} Ke4 {[%emt 0:00:14]} (48... Kd6 $142 49. Kf3 Rf1+ 50. Kg4 Rf2) 49. a5 {[%emt 0:00:31] Rb4+ is the strong threat.} Ra2 {[%emt 0:01:26]} 50. Rb4+ {[%emt 0:02:41] Weighted Error Value: White=0.11 (very precise) /Black=0.47} 1-0

[Event "Czech Championship U20 Open 2023"]
[Site "Jaromerice nad Rokytnou"]
[Date "2023.03.14"]
[Round "6.5"]
[White "Mach, Petr"]
[Black "Jun, Rudolf"]
[Result "1/2-1/2"]
[ECO "A04"]
[WhiteElo "2167"]
[BlackElo "2152"]
[Annotator "TA"]
[PlyCount "66"]
[EventDate "2023.03.10"]
[EventType "tourn"]
[EventCountry "CZE"]
[SourceTitle "playchess.com"]
[Source "ChessBase"]
[SourceQuality "1"]
[TimeControl "40/5400+30:1800+30"]

{[%evp 12,66,-14,-20,0,-11,-11,-15,0,-4,0,-12,17,-14,-12,-15,-16,-19,-17,-18,0,-34,-33,-35,-40,-33,0,-46,-49,-35,-26,-67,-16,-17,0,0,0,0,0,-22,0,0,0,0,0,0,0,0,0,0,0,0,0,0,0,0,0]} 1. Nf3 {[%emt 0:00:03]} c5 {[%emt 0:01:11]} 2. g3 {[%emt 0:00:05]} Nc6 {[%emt 0:01:16]} 3. d4 {[%emt 0:00:13]} cxd4 {[%emt 0:00:11]} 4. Nxd4 {[%emt 0:00:12]} g6 {[%emt 0:01:56]} 5. Bg2 {[%emt 0:01:00]} Bg7 {[%emt 0:01:36]} 6. Nxc6 {[%emt 0:00:32]} bxc6 {[%emt 0:00:43]} 7. c4 {[%emt 0:00:06]} Qa5+ {[%emt 0:04:01] A30: Symmetrical English: Double Fianchetto and Hedgehog.} 8. Qd2 {[%emt 0:03:53]} Qxd2+ {[%emt 0:04:33]} 9. Nxd2 {[%emt 0:02:21] [#]} a5 $146 {[%emt 0:01:28]} ({Predecessor:} 9... Nf6 10. Rb1 d5 11. e4 Be6 12. b3 O-O 13. Ba3 dxe4 14. Nxe4 Bf5 15. f3 Nxe4 16. fxe4 {1-0 Neiss,J (2076)-Powierski,E (2019) Hamburg St Pauli op-A 2011 (4)}) 10. Rb1 {[%emt 0:02:04]} Nf6 {[%emt 0:01:11]} 11. e4 {[%emt 0:02:28]} Ra6 {[%emt 0:01:14]} 12. O-O {[%emt 0:06:15]} d6 {[%emt 0:00:47]} 13. b3 {[%emt 0:00:40]} O-O {[%emt 0:03:47]} 14. Bb2 {[%emt 0:00:55]} Rd8 {[%emt 0:10:50]} 15. Rfd1 {[%emt 0:03:14]} c5 {[%emt 0:04:17]} 16. h3 {[%emt 0:01:51]} (16. e5 $5 {[%cal Re5f6]} Ng4 17. Ne4 $11) 16... Nd7 {[%emt 0:04:44]} 17. Bxg7 {[%emt 0:01:57]} Kxg7 {[%emt 0:00:06]} 18. f4 {[%emt 0:01:57]} Bb7 {[%emt 0:01:30]} 19. Kf2 {[%emt 0:00:33]} (19. e5 $11 Bxg2 20. Kxg2) 19... Rb6 {[%emt 0:01:37]} 20. Nf1 {[%emt 0:09:45]} Nf6 {[%emt 0:02:04]} 21. Re1 {[%emt 0:03:12] [#]} a4 $1 {[%emt 0:03:31]} 22. e5 $11 {[%emt 0:01:47] The position is equal.} dxe5 {[%emt 0:02:47]} 23. Rxe5 {[%emt 0:00:18]} Bxg2 {[%emt 0:01:40]} 24. Kxg2 {[%emt 0:01:04]} Rd3 {[%emt 0:02:29]} 25. Rxe7 {[%emt 0:00:23]} axb3 {[%emt 0:00:12]} 26. Rxb3 {[%emt 0:00:06]} Rbxb3 {[%emt 0:00:30]} 27. axb3 {[%emt 0:00:05]} Rxb3 {[%emt 0:00:09][%mdl 4096] Endgame KRN-KRN} 28. Re5 {[%emt 0:02:13]} Nd7 {[%emt 0:02:22]} 29. Rd5 {[%emt 0:00:12]} Nb6 {[%emt 0:00:31]} 30. Rxc5 {[%emt 0:00:05]} Rc3 {[%emt 0:00:17]} 31. Kf2 {[%emt 0:02:23]} Rxc4 {[%emt 0:00:41]} 32. Rxc4 {[%emt 0:00:09]} Nxc4 {[%emt 0:00:05]} 33. Ne3 {[%emt 0:00:13]} Nd2 {[%emt 0:00:15] Weighted Error Value: White=0.10 (very precise) /Black=0.11 (very precise)} 1/2-1/2

[Event "Czech Championship U20 Open 2023"]
[Site "Jaromerice nad Rokytnou"]
[Date "2023.03.14"]
[Round "6.6"]
[White "Ocelak, Jakub"]
[Black "Hrbek, Stepan"]
[Result "1/2-1/2"]
[ECO "A37"]
[WhiteElo "2190"]
[BlackElo "2340"]
[Annotator "TA"]
[PlyCount "83"]
[EventDate "2023.03.10"]
[EventType "tourn"]
[EventCountry "CZE"]
[SourceTitle "playchess.com"]
[Source "ChessBase"]
[SourceQuality "1"]
[TimeControl "40/5400+30:1800+30"]

{[%evp 21,83,37,29,20,33,21,29,34,32,23,46,0,36,48,41,35,43,0,25,0,43,0,0,0,0,0,-10,-39,0,-9,0,-5,0,-22,0,0,0,-26,16,-13,11,-41,-46,-46,-29,-53,-37,-53,22,0,67,0,51,0,14,0,0,0,0,0,0,19,8,20]} 1. Nf3 {[%emt 0:00:07]} c5 {[%emt 0:01:47]} 2. c4 {[%emt 0:00:05]} Nc6 {[%emt 0:01:32]} 3. Nc3 {[%emt 0:00:09]} g6 {[%emt 0:00:15]} 4. g3 {[%emt 0:00:13]} Bg7 {[%emt 0:00:07]} 5. Bg2 {[%emt 0:00:04]} e6 {[%emt 0:01:02]} 6. e3 {[%emt 0:11:15]} Nge7 {[%emt 0:00:50]} 7. d4 {[%emt 0:04:24]} cxd4 {[%emt 0:03:05]} 8. Nxd4 {[%emt 0:01:34]} d5 {[%emt 0:01:30]} 9. cxd5 {[%emt 0:00:08]} exd5 {[%emt 0:00:42]} 10. O-O {[%emt 0:05:43]} O-O $1 {[%emt 0:00:25] The main line 10...0-0 scores better than 10...Nxd4.} 11. Nxc6 {[%emt 0:08:51]} bxc6 {[%emt 0:02:20]} 12. Qa4 {[%emt 0:01:04] A36: Symmetrical English vs ...g6: 4 Bg2 Bg7.} Qb6 {[%emt 0:10:45]} 13. Qa3 {[%emt 0:03:51] [#]} Nf5 $146 {[%emt 0:00:19]} ({Predecessor:} 13... Re8 14. Na4 Qa6 15. Bd2 Rb8 16. Bb4 Nf5 17. Rfc1 h5 18. Bf1 Qb7 19. Bc3 Bf8 {1-0 Gochelashvili,D (2324)-Vastrukhin,O (2367) Novorossiysk Small Land Blitz 2022 (5)}) 14. Bd2 {[%emt 0:03:52] White has an edge.} ({Much worse is} 14. e4 dxe4 15. Nxe4 Be6 $15) 14... Re8 {[%emt 0:05:04]} 15. Na4 {[%emt 0:10:57]} Qa6 {[%emt 0:03:29][%cal Of5d6]} 16. Rab1 {[%emt 0:10:55]} (16. Bb4 $14) 16... Rb8 {[%emt 0:04:31]} (16... Nd6 $5 17. Qxd6 Qxa4 $11) 17. b3 {[%emt 0:00:48]} Bf8 {[%emt 0:02:36]} 18. Qc1 {[%emt 0:02:53]} Nd6 {[%emt 0:01:17]} 19. Nc5 {[%emt 0:02:58]} Qb6 {[%emt 0:02:07]} (19... Qxa2 $2 20. Ra1 $18) 20. Na4 {[%emt 0:04:34]} Qa6 {[%emt 0:00:17]} 21. Nc5 {[%emt 0:00:06]} Qb5 {[%emt 0:03:54]} (21... Qxa2 $2 22. Ra1 $18) 22. a4 {[%emt 0:07:08]} Qb6 {[%emt 0:00:23]} 23. a5 {[%emt 0:05:43]} Qd8 {[%emt 0:09:19]} 24. Qd1 {[%emt 0:01:53]} Nb5 {[%emt 0:04:39]} 25. b4 {[%emt 0:01:14]} Bg7 {[%emt 0:02:21]} 26. Qb3 {[%emt 0:01:28]} Bf5 {[%emt 0:03:50]} 27. Rbc1 {[%emt 0:00:19]} h5 {[%emt 0:03:17][%cal Bh7h5,Bh5h4,Bh4h3][%mdl 32]} 28. Rfe1 {[%emt 0:02:22]} h4 {[%emt 0:06:49]} 29. Bf1 {[%emt 0:01:19]} Bh6 {[%emt 0:06:23]} 30. Qb2 {[%emt 0:01:21]} Rc8 {[%emt 0:06:19]} 31. Bd3 {[%emt 0:02:31]} (31. Bxb5 $11 cxb5 32. Bc3) 31... Bxd3 $15 {[%emt 0:00:41]} 32. Nxd3 {[%emt 0:00:01]} h3 {[%emt 0:06:15]} 33. Nc5 {[%emt 0:02:04]} Bg7 {[%emt 0:02:40]} 34. Qb3 {[%emt 0:00:49]} f5 {[%emt 0:01:33]} (34... Qg5 $15) 35. Qd3 {[%emt 0:00:50]} Kf7 {[%emt 0:02:29]} (35... Qg5 $11) 36. Rcd1 {[%emt 0:00:51]} (36. Qf1 $1 $14) 36... Qf6 {[%emt 0:00:53]} (36... Nd6 $11) 37. Rb1 {[%emt 0:01:47]} (37. Qf1 $1 $14) 37... Rcd8 {[%emt 0:00:17] The position is equal.} 38. Rbc1 {[%emt 0:00:40]} g5 {[%emt 0:01:38][%cal Bg6g5,Bg5g4,Bg4f3][%mdl 32]} 39. Qf1 {[%emt 0:00:56]} g4 {[%emt 0:00:46]} 40. Qd3 {[%emt 0:00:29]} Re7 {[%emt 0:01:04]} 41. f3 {[%emt 0:08:38]} gxf3 {[%emt 0:09:09] [#] Threatens to win with ...Bh6.} 42. Rf1 {[%emt 0:01:22] Weighted Error Value: White=0.18 (very precise) /Black=0.17 (very precise)} 1/2-1/2